[Event "GrandPrix_29.05"]
[Site "Chess.com"]
[Date "2020.05.29"]
[Round "4"]
[White "gygygygygyggygygygy"]
[Black "friesnielsen2302"]
[Result "0-1"]
[WhiteElo "1984"]
[BlackElo "1710"]
[TimeControl "600+2"]
[EndTime "10:54:56 PDT"]
[Termination "friesnielsen2302 won by resignation"]

1. e4 {[%clk 0:09:57.1]} 1... e5 {[%clk 0:09:56.7]} 2. Nf3 {[%clk 0:09:57.6]}
2... Nc6 {[%clk 0:09:56.1]} 3. Nc3 {[%clk 0:09:59.1]} 3... d6 {[%clk 0:09:37.2]}
4. d4 {[%clk 0:09:55.7]} 4... Bg4 {[%clk 0:09:37.3]} 5. Be2 {[%clk 0:09:11.8]}
5... Bxf3 {[%clk 0:09:29]} 6. Bxf3 {[%clk 0:09:08.2]} 6... Nxd4 {[%clk
0:09:29.6]} 7. O-O {[%clk 0:09:08.3]} 7... Nf6 {[%clk 0:09:21.5]} 8. Be3 {[%clk
0:08:59.4]} 8... Nxf3+ {[%clk 0:09:08.9]} 9. Qxf3 {[%clk 0:08:59.7]} 9... Be7
{[%clk 0:09:10.5]} 10. Qg3 {[%clk 0:09:00.2]} 10... Qd7 {[%clk 0:08:50.6]} 11.
a4 {[%clk 0:08:55.8]} 11... Qg4 {[%clk 0:08:42.2]} 12. Nb5 {[%clk 0:08:24.5]}
12... Kd7 {[%clk 0:08:25.5]} 13. Qxg4+ {[%clk 0:07:53.8]} 13... Nxg4 {[%clk
0:08:23.8]} 14. Bd2 {[%clk 0:07:55.3]} 14... c6 {[%clk 0:08:19.7]} 15. Nc3
{[%clk 0:07:55.8]} 15... h5 {[%clk 0:08:11.2]} 16. f3 {[%clk 0:07:53.5]} 16...
Nf6 {[%clk 0:08:11.3]} 17. Be3 {[%clk 0:07:54]} 17... h4 {[%clk 0:08:11.2]} 18.
Rad1 {[%clk 0:07:51.1]} 18... Ke6 {[%clk 0:08:11.7]} 19. h3 {[%clk 0:07:46.1]}
19... Nh5 {[%clk 0:08:07]} 20. Ne2 {[%clk 0:07:46.6]} 20... g6 {[%clk
0:07:28.4]} 21. f4 {[%clk 0:07:38.2]} 21... exf4 {[%clk 0:07:26.7]} 22. Nxf4+
{[%clk 0:07:38.9]} 22... Nxf4 {[%clk 0:07:26.3]} 23. Bxf4 {[%clk 0:07:39.7]}
23... Rh5 {[%clk 0:07:20.5]} 24. Rd3 {[%clk 0:07:23.7]} 24... Rc5 {[%clk
0:07:15.2]} 25. c3 {[%clk 0:07:18.2]} 25... Rc4 {[%clk 0:07:14.5]} 26. Rfd1
{[%clk 0:07:05.9]} 26... Rd8 {[%clk 0:07:03.8]} 27. Rd4 {[%clk 0:07:02.3]} 27...
Rxd4 {[%clk 0:07:01.7]} 28. cxd4 {[%clk 0:07:01.2]} 28... d5 {[%clk 0:07:01.6]}
29. e5 {[%clk 0:07:02.2]} 29... b6 {[%clk 0:06:47.3]} 30. Kf2 {[%clk 0:06:51.6]}
30... c5 {[%clk 0:06:47.6]} 31. Ke3 {[%clk 0:06:52]} 31... Rc8 {[%clk
0:06:44.6]} 32. dxc5 {[%clk 0:06:47.8]} 32... Rxc5 {[%clk 0:06:37.7]} 33. Kd3
{[%clk 0:06:46.3]} 33... Rc4 {[%clk 0:06:36.4]} 34. Bh2 {[%clk 0:05:53.7]} 34...
Rxa4 {[%clk 0:06:31.6]} 35. Rc1 {[%clk 0:05:52.9]} 35... Rc4 {[%clk 0:06:29.1]}
36. Rxc4 {[%clk 0:05:47.4]} 36... dxc4+ {[%clk 0:06:30.1]} 37. Kxc4 {[%clk
0:05:48.7]} 37... Bc5 {[%clk 0:06:30.7]} 38. b4 {[%clk 0:05:45.9]} 38... Bf2
{[%clk 0:06:23.9]} 39. b5 {[%clk 0:05:38.8]} 39... g5 {[%clk 0:06:07.3]} 40. Kd3
{[%clk 0:05:27]} 40... Kd5 {[%clk 0:05:45.3]} 41. e6 {[%clk 0:05:20.7]} 41...
fxe6 {[%clk 0:05:46]} 42. Bb8 {[%clk 0:05:20.2]} 42... e5 {[%clk 0:05:45.3]} 43.
Bxa7 {[%clk 0:05:18.8]} 43... e4+ {[%clk 0:05:43.9]} 44. Ke2 {[%clk 0:05:19]}
44... Bc5 {[%clk 0:05:43.9]} 45. Bb8 {[%clk 0:05:15]} 45... Kc4 {[%clk
0:05:22.9]} 46. Be5 {[%clk 0:05:14]} 46... Kxb5 {[%clk 0:04:50.5]} 47. Bf6
{[%clk 0:05:14.4]} 47... Kc4 {[%clk 0:04:51.5]} 48. Bxg5 {[%clk 0:05:14.7]}
48... b5 {[%clk 0:04:53]} 49. Bxh4 {[%clk 0:05:03]} 49... b4 {[%clk 0:04:54]}
50. Bg5 {[%clk 0:04:49]} 50... b3 {[%clk 0:04:50.7]} 51. Bc1 {[%clk 0:04:48.3]}
51... Bd4 {[%clk 0:04:44.5]} 52. g4 {[%clk 0:04:16.6]} 52... Kd5 {[%clk
0:04:43.1]} 53. h4 {[%clk 0:04:09.7]} 53... b2 {[%clk 0:04:42.7]} 54. Bxb2
{[%clk 0:04:09.7]} 54... Bxb2 {[%clk 0:04:43.5]} 55. g5 {[%clk 0:03:39.4]} 55...
Bc1 {[%clk 0:04:33.5]} 56. g6 {[%clk 0:03:25.7]} 56... Bh6 {[%clk 0:04:30.4]}
57. h5 {[%clk 0:03:24.7]} 57... Ke5 {[%clk 0:04:31.6]} 58. Kf2 {[%clk
0:03:22.6]} 58... Kf4 {[%clk 0:04:32.1]} 59. Ke2 {[%clk 0:03:19.6]} 59... e3
{[%clk 0:04:25.8]} 60. Kf1 {[%clk 0:02:54.1]} 60... Kf3 {[%clk 0:04:26]} 61. Ke1
{[%clk 0:02:52.7]} 61... e2 {[%clk 0:04:15.1]} 62. g7 {[%clk 0:02:47.6]} 62...
Bxg7 {[%clk 0:04:14.7]} 0-1

[Event "GrandPrix_29.05"]
[Site "Chess.com"]
[Date "2020.05.29"]
[Round "4"]
[White "Alexander_Donchenko"]
[Black "Msb2"]
[Result "1/2-1/2"]
[WhiteElo "2711"]
[BlackElo "2605"]
[TimeControl "600+2"]
[EndTime "10:55:00 PDT"]
[Termination "Game drawn by agreement"]

1. c4 {[%clk 0:10:01.7]} 1... e6 {[%clk 0:10:00.1]} 2. g3 {[%clk 0:10:00.5]}
2... d5 {[%clk 0:10:01.1]} 3. Bg2 {[%clk 0:10:01.9]} 3... Nf6 {[%clk 0:10:01.9]}
4. Nf3 {[%clk 0:10:02.6]} 4... dxc4 {[%clk 0:10:03.3]} 5. Qa4+ {[%clk
0:10:03.3]} 5... Bd7 {[%clk 0:10:04.8]} 6. Qxc4 {[%clk 0:10:04.3]} 6... c5
{[%clk 0:10:06.4]} 7. Ne5 {[%clk 0:10:03.8]} 7... Qc8 {[%clk 0:10:07.3]} 8. Qd3
{[%clk 0:10:02]} 8... Bc6 {[%clk 0:10:08.3]} 9. Nxc6 {[%clk 0:10:01.4]} 9...
Nxc6 {[%clk 0:10:10.2]} 10. Nc3 {[%clk 0:09:37.2]} 10... a6 {[%clk 0:09:12.9]}
11. O-O {[%clk 0:09:20]} 11... Be7 {[%clk 0:09:12.9]} 12. b3 {[%clk 0:08:40.6]}
12... O-O {[%clk 0:09:12.6]} 13. Bb2 {[%clk 0:08:41.3]} 13... Rd8 {[%clk
0:09:07]} 14. Qe3 {[%clk 0:08:05.4]} 14... Qc7 {[%clk 0:08:27.4]} 15. d3 {[%clk
0:07:44.6]} 15... Rac8 {[%clk 0:08:22.6]} 16. Rac1 {[%clk 0:07:40.1]} 16... Nd4
{[%clk 0:08:10]} 17. Rfd1 {[%clk 0:07:21.1]} 17... b6 {[%clk 0:07:42.8]} 18. Qd2
{[%clk 0:07:00.6]} 18... Nc6 {[%clk 0:06:52.4]} 19. e3 {[%clk 0:06:32.3]} 19...
Qa7 {[%clk 0:05:44.1]} 20. Qe2 {[%clk 0:05:50.1]} 20... Nb4 {[%clk 0:05:30]} 21.
Ba1 {[%clk 0:05:27.4]} 21... b5 {[%clk 0:05:15.5]} 22. Ne4 {[%clk 0:04:53.2]}
22... Nbd5 {[%clk 0:04:57.7]} 23. d4 {[%clk 0:04:43.6]} 23... Nxe4 {[%clk
0:04:31]} 24. Bxe4 {[%clk 0:04:45.5]} 24... Bf6 {[%clk 0:04:32.5]} 25. Rxc5
{[%clk 0:03:10.8]} 25... Rxc5 {[%clk 0:04:04.8]} 26. dxc5 {[%clk 0:03:12.7]}
26... Bxa1 {[%clk 0:03:58.5]} 27. Rxa1 {[%clk 0:03:13.3]} 27... Nf6 {[%clk
0:03:18.2]} 28. Rd1 {[%clk 0:03:00.2]} 28... Rf8 {[%clk 0:02:35.2]} 29. Qc2
{[%clk 0:02:21.8]} 29... Nxe4 {[%clk 0:02:34.1]} 30. Qxe4 {[%clk 0:02:23.7]}
30... Qxc5 {[%clk 0:02:35.4]} 1/2-1/2

[Event "GrandPrix_29.05"]
[Site "Chess.com"]
[Date "2020.05.29"]
[Round "4"]
[White "VincentKeymer"]
[Black "MikaelyanArman1996"]
[Result "1-0"]
[WhiteElo "2367"]
[BlackElo "2250"]
[TimeControl "600+2"]
[EndTime "10:55:02 PDT"]
[Termination "VincentKeymer won on time"]

1. Nf3 {[%clk 0:10:01.7]} 1... g6 {[%clk 0:09:55.3]} 2. c4 {[%clk 0:10:01.3]}
2... Bg7 {[%clk 0:09:55.7]} 3. Nc3 {[%clk 0:10:03]} 3... d6 {[%clk 0:09:55.3]}
4. d4 {[%clk 0:10:03]} 4... Nd7 {[%clk 0:09:53]} 5. g3 {[%clk 0:10:03.8]} 5...
e5 {[%clk 0:09:53.2]} 6. Bg2 {[%clk 0:10:05.3]} 6... Ne7 {[%clk 0:09:52.5]} 7.
O-O {[%clk 0:10:04.9]} 7... exd4 {[%clk 0:09:52.8]} 8. Nxd4 {[%clk 0:10:05.5]}
8... O-O {[%clk 0:09:53.5]} 9. h3 {[%clk 0:09:48.5]} 9... Ne5 {[%clk 0:07:50.1]}
10. b3 {[%clk 0:09:46.6]} 10... c5 {[%clk 0:07:48.4]} 11. Ndb5 {[%clk
0:09:43.8]} 11... Nf5 {[%clk 0:06:38.3]} 12. Bb2 {[%clk 0:09:28.1]} 12... a6
{[%clk 0:06:35.1]} 13. Na3 {[%clk 0:09:28.9]} 13... h5 {[%clk 0:05:37.1]} 14.
Nc2 {[%clk 0:09:23.1]} 14... h4 {[%clk 0:05:22.5]} 15. g4 {[%clk 0:09:19.2]}
15... Nd4 {[%clk 0:05:23.5]} 16. Nxd4 {[%clk 0:08:26.4]} 16... cxd4 {[%clk
0:05:25.4]} 17. Nd5 {[%clk 0:08:27.9]} 17... d3 {[%clk 0:05:21.2]} 18. exd3
{[%clk 0:08:23.3]} 18... f5 {[%clk 0:04:23.7]} 19. f4 {[%clk 0:07:40.8]} 19...
Nf3+ {[%clk 0:04:09.7]} 20. Qxf3 {[%clk 0:07:38.8]} 20... Bxb2 {[%clk
0:04:10.1]} 21. Rae1 {[%clk 0:07:36.1]} 21... Rf7 {[%clk 0:03:20.7]} 22. Qf2
{[%clk 0:07:19.5]} 22... Bg7 {[%clk 0:02:53.4]} 23. g5 {[%clk 0:07:18.5]} 23...
Rb8 {[%clk 0:02:17.5]} 24. Nb6 {[%clk 0:06:46.6]} 24... Bc3 {[%clk 0:02:00.2]}
25. Bd5 {[%clk 0:06:27.6]} 25... Bxe1 {[%clk 0:01:32.5]} 26. Rxe1 {[%clk
0:06:29.5]} 26... Kf8 {[%clk 0:01:25.6]} 27. c5 {[%clk 0:05:56.6]} 27... Re7
{[%clk 0:01:19.9]} 28. Rxe7 {[%clk 0:05:36.7]} 28... Qxe7 {[%clk 0:01:21.8]} 29.
Qxh4 {[%clk 0:05:33.5]} 29... Qe3+ {[%clk 0:01:06.7]} 30. Kh2 {[%clk 0:05:34]}
30... Qd2+ {[%clk 0:00:33.8]} 31. Bg2 {[%clk 0:05:30.6]} 31... Be6 {[%clk
0:00:20.8]} 32. Qh8+ {[%clk 0:05:30.7]} 32... Bg8 {[%clk 0:00:14.1]} 33. Qf6+
{[%clk 0:05:29.6]} 33... Ke8 {[%clk 0:00:15.4]} 34. Qxg6+ {[%clk 0:05:26.4]}
34... Bf7 {[%clk 0:00:14.5]} 35. Qxd6 {[%clk 0:05:27.1]} 35... Rd8 {[%clk
0:00:12.2]} 36. Qe5+ {[%clk 0:05:26]} 36... Kf8 {[%clk 0:00:13.5]} 37. g6 {[%clk
0:05:21]} 37... Re8 {[%clk 0:00:05.9]} 38. Nd7+ {[%clk 0:05:15.3]} 38... Kg8
{[%clk 0:00:05.2]} 39. gxf7+ {[%clk 0:05:16.5]} 39... Kxf7 {[%clk 0:00:06.6]}
40. Qf6+ {[%clk 0:05:13.2]} 40... Kg8 {[%clk 0:00:07.8]} 41. Qg6+ {[%clk
0:05:14.5]} 1-0

[Event "GrandPrix_29.05"]
[Site "Chess.com"]
[Date "2020.05.29"]
[Round "4"]
[White "DaviD-GevorG"]
[Black "TimofeevAr"]
[Result "0-1"]
[WhiteElo "1852"]
[BlackElo "2523"]
[TimeControl "600+2"]
[EndTime "10:55:11 PDT"]
[Termination "TimofeevAr won by resignation"]

1. Nf3 {[%clk 0:10:01.9]} 1... Nf6 {[%clk 0:10:00.1]} 2. g3 {[%clk 0:09:59.7]}
2... g6 {[%clk 0:10:00.8]} 3. Bg2 {[%clk 0:10:00.9]} 3... Bg7 {[%clk 0:10:02.1]}
4. O-O {[%clk 0:10:01.1]} 4... O-O {[%clk 0:10:03]} 5. d4 {[%clk 0:10:01.7]}
5... d5 {[%clk 0:10:03.5]} 6. Ne5 {[%clk 0:09:08.3]} 6... c6 {[%clk 0:10:00.1]}
7. Nd2 {[%clk 0:09:05.7]} 7... Bf5 {[%clk 0:09:54]} 8. b3 {[%clk 0:08:54.5]}
8... a5 {[%clk 0:09:51.5]} 9. a3 {[%clk 0:08:34.3]} 9... Nbd7 {[%clk 0:09:42.4]}
10. Nd3 {[%clk 0:07:49.4]} 10... a4 {[%clk 0:09:36.5]} 11. Bb2 {[%clk 0:07:34]}
11... axb3 {[%clk 0:09:30.4]} 12. cxb3 {[%clk 0:07:25.1]} 12... Bxd3 {[%clk
0:09:28.2]} 13. exd3 {[%clk 0:07:26.2]} 13... Nb6 {[%clk 0:09:20.4]} 14. Nf3
{[%clk 0:07:15]} 14... Nc8 {[%clk 0:09:18.5]} 15. Ne5 {[%clk 0:07:10.4]} 15...
Nd6 {[%clk 0:09:19.3]} 16. Re1 {[%clk 0:07:08.3]} 16... Nd7 {[%clk 0:09:15.6]}
17. Bh3 {[%clk 0:06:48.7]} 17... e6 {[%clk 0:09:13.6]} 18. Qd2 {[%clk
0:06:42.9]} 18... Nf6 {[%clk 0:08:48.3]} 19. Bc3 {[%clk 0:05:38.1]} 19... Re8
{[%clk 0:08:36]} 20. a4 {[%clk 0:05:19.2]} 20... Qb6 {[%clk 0:08:33.7]} 21. b4
{[%clk 0:05:06.4]} 21... Ra7 {[%clk 0:08:09.9]} 22. Reb1 {[%clk 0:04:02.5]}
22... Rea8 {[%clk 0:08:05.7]} 23. Qc2 {[%clk 0:04:03.6]} 23... Qc7 {[%clk
0:07:56.9]} 24. Bd2 {[%clk 0:03:48.5]} 24... Nb5 {[%clk 0:07:46.1]} 25. Be3
{[%clk 0:01:45.6]} 25... Nd7 {[%clk 0:07:42.7]} 26. f4 {[%clk 0:01:00.5]} 26...
Nb6 {[%clk 0:07:09.3]} 27. a5 {[%clk 0:01:00.5]} 27... Nd7 {[%clk 0:07:06.6]}
28. Rc1 {[%clk 0:01:01.2]} 28... Ra6 {[%clk 0:06:56.3]} 29. g4 {[%clk
0:00:42.6]} 29... Qd6 {[%clk 0:06:56.1]} 30. Rab1 {[%clk 0:00:36.2]} 30... Na3
{[%clk 0:06:41.3]} 31. Qf2 {[%clk 0:00:26.8]} 31... Nxb1 {[%clk 0:06:41.5]} 32.
Rxb1 {[%clk 0:00:28.7]} 32... b6 {[%clk 0:06:37.4]} 33. f5 {[%clk 0:00:13.7]}
33... bxa5 {[%clk 0:06:16.6]} 34. Nxf7 {[%clk 0:00:08.2]} 34... Qe7 {[%clk
0:05:58]} 35. fxe6 {[%clk 0:00:09.5]} 35... Qxe6 {[%clk 0:05:56.4]} 36. Ng5
{[%clk 0:00:10.5]} 36... Qe7 {[%clk 0:05:56.6]} 37. b5 {[%clk 0:00:10.7]} 37...
cxb5 {[%clk 0:05:49.6]} 38. Bg2 {[%clk 0:00:11.9]} 38... Nf6 {[%clk 0:05:40.4]}
39. Rxb5 {[%clk 0:00:12.6]} 39... Re8 {[%clk 0:05:37.7]} 40. Bd2 {[%clk
0:00:09.3]} 40... a4 {[%clk 0:05:33.4]} 41. Nf3 {[%clk 0:00:07.1]} 41... a3
{[%clk 0:05:33.4]} 42. Rb1 {[%clk 0:00:07.6]} 42... a2 {[%clk 0:05:34.3]} 43.
Ra1 {[%clk 0:00:08.7]} 43... Nxg4 {[%clk 0:05:34.6]} 44. Qg3 {[%clk 0:00:06.5]}
44... Ne3 {[%clk 0:05:31.3]} 45. Ne5 {[%clk 0:00:06.5]} 45... Nxg2 {[%clk
0:05:31.7]} 46. Kxg2 {[%clk 0:00:07.9]} 46... Bxe5 {[%clk 0:05:30.1]} 47. dxe5
{[%clk 0:00:08.9]} 47... Qxe5 {[%clk 0:05:31.3]} 0-1

[Event "GrandPrix_29.05"]
[Site "Chess.com"]
[Date "2020.05.29"]
[Round "4"]
[White "Margency"]
[Black "Hakob-Hakobyan-Arm"]
[Result "1/2-1/2"]
[WhiteElo "1769"]
[BlackElo "2094"]
[TimeControl "600+2"]
[EndTime "10:55:23 PDT"]
[Termination "Game drawn by repetition"]

1. e4 {[%clk 0:10:01.9]} 1... Nc6 {[%clk 0:10:00.5]} 2. Nf3 {[%clk 0:10:01.9]}
2... d6 {[%clk 0:10:01.4]} 3. d4 {[%clk 0:10:02.5]} 3... Nf6 {[%clk 0:10:00.2]}
4. Nc3 {[%clk 0:10:03.2]} 4... g6 {[%clk 0:10:00.6]} 5. Bc4 {[%clk 0:09:35.5]}
5... Bg7 {[%clk 0:10:01.3]} 6. Bb3 {[%clk 0:09:32.3]} 6... O-O {[%clk
0:10:02.2]} 7. h3 {[%clk 0:09:32.9]} 7... e5 {[%clk 0:10:02.5]} 8. dxe5 {[%clk
0:09:31.4]} 8... Nxe5 {[%clk 0:09:52.9]} 9. O-O {[%clk 0:09:27.1]} 9... Nxf3+
{[%clk 0:09:20.9]} 10. Qxf3 {[%clk 0:09:26.1]} 10... Be6 {[%clk 0:09:15.7]} 11.
Bg5 {[%clk 0:09:15.7]} 11... h6 {[%clk 0:09:13.6]} 12. Bh4 {[%clk 0:08:56.6]}
12... g5 {[%clk 0:09:10.4]} 13. Bg3 {[%clk 0:08:56.6]} 13... Nd7 {[%clk
0:08:47.6]} 14. Rad1 {[%clk 0:08:36.8]} 14... Ne5 {[%clk 0:08:34.6]} 15. Qh5
{[%clk 0:08:29.5]} 15... Nc4 {[%clk 0:07:16.6]} 16. Bxc4 {[%clk 0:07:51.7]}
16... Bxc4 {[%clk 0:07:16.8]} 17. Rfe1 {[%clk 0:07:53.1]} 17... f5 {[%clk
0:06:16.6]} 18. exf5 {[%clk 0:07:31.5]} 18... Bxc3 {[%clk 0:05:24]} 19. bxc3
{[%clk 0:07:26.5]} 19... Qf6 {[%clk 0:05:25.4]} 20. Re4 {[%clk 0:06:55.7]} 20...
Bf7 {[%clk 0:04:52.7]} 21. Qf3 {[%clk 0:06:07.7]} 21... h5 {[%clk 0:03:46.3]}
22. c4 {[%clk 0:05:42.2]} 22... b6 {[%clk 0:03:41.4]} 23. h4 {[%clk 0:05:15.9]}
23... g4 {[%clk 0:03:41.2]} 24. Qf4 {[%clk 0:05:15.8]} 24... Rae8 {[%clk
0:03:25.4]} 25. f3 {[%clk 0:05:09.2]} 25... gxf3 {[%clk 0:03:16.9]} 26. gxf3
{[%clk 0:05:11.1]} 26... Rxe4 {[%clk 0:03:15.8]} 27. fxe4 {[%clk 0:05:08.5]}
27... Qc3 {[%clk 0:03:16.3]} 28. Kh2 {[%clk 0:04:51]} 28... Kh7 {[%clk
0:03:05.3]} 29. Rg1 {[%clk 0:04:13.7]} 29... Rg8 {[%clk 0:03:05.6]} 30. Bf2
{[%clk 0:04:12.1]} 30... Rxg1 {[%clk 0:02:58.4]} 31. Kxg1 {[%clk 0:04:12.4]}
31... Qxc2 {[%clk 0:02:58]} 32. Be3 {[%clk 0:04:10.7]} 32... Qd1+ {[%clk
0:02:56]} 33. Kf2 {[%clk 0:04:11.4]} 33... Qg4 {[%clk 0:02:51.1]} 34. Qh6+
{[%clk 0:04:03.7]} 34... Kg8 {[%clk 0:02:51.9]} 35. Bg5 {[%clk 0:04:05]} 35...
Qxe4 {[%clk 0:02:49.5]} 36. Qf6 {[%clk 0:03:31.3]} 36... Qc2+ {[%clk 0:02:47.6]}
37. Kg3 {[%clk 0:03:29.3]} 37... Qxc4 {[%clk 0:02:47.9]} 38. Bh6 {[%clk
0:02:53.7]} 38... Qg4+ {[%clk 0:02:48]} 39. Kf2 {[%clk 0:02:54.8]} 39... Kh7
{[%clk 0:02:32.8]} 40. Bg5 {[%clk 0:02:44.2]} 40... Kg8 {[%clk 0:02:31.4]} 41.
Qd8+ {[%clk 0:02:38.2]} 41... Kh7 {[%clk 0:02:32.5]} 42. Qf6 {[%clk 0:02:38.3]}
42... Kg8 {[%clk 0:02:33.6]} 43. Qd8+ {[%clk 0:02:39.3]} 43... Kh7 {[%clk
0:02:34.6]} 44. Qf6 {[%clk 0:02:40.5]} 1/2-1/2

[Event "GrandPrix_29.05"]
[Site "Chess.com"]
[Date "2020.05.29"]
[Round "4"]
[White "caspiwins"]
[Black "Eltaj_Safarli"]
[Result "1-0"]
[WhiteElo "2433"]
[BlackElo "2329"]
[TimeControl "600+2"]
[EndTime "10:55:25 PDT"]
[Termination "caspiwins won by resignation"]

1. e4 {[%clk 0:10:01.6]} 1... e5 {[%clk 0:09:53.9]} 2. Nf3 {[%clk 0:10:02.2]}
2... Nc6 {[%clk 0:09:54.9]} 3. d4 {[%clk 0:10:03.4]} 3... exd4 {[%clk
0:09:55.4]} 4. Nxd4 {[%clk 0:10:05.3]} 4... Qf6 {[%clk 0:09:53.6]} 5. Nf3 {[%clk
0:10:02.3]} 5... Bb4+ {[%clk 0:09:43.4]} 6. c3 {[%clk 0:10:02.8]} 6... Bc5
{[%clk 0:09:42.6]} 7. Be2 {[%clk 0:09:53.9]} 7... Nge7 {[%clk 0:09:42]} 8. O-O
{[%clk 0:09:54.3]} 8... h6 {[%clk 0:09:31.7]} 9. Qd2 {[%clk 0:09:54.8]} 9... g5
{[%clk 0:08:55.7]} 10. b4 {[%clk 0:09:36.5]} 10... Bb6 {[%clk 0:08:54.9]} 11.
Bb2 {[%clk 0:09:16.9]} 11... Qg6 {[%clk 0:03:00]} 12. c4 {[%clk 0:09:00.4]}
12... Rg8 {[%clk 0:02:42.4]} 13. c5 {[%clk 0:08:36.8]} 13... Qxe4 {[%clk
0:02:40.3]} 14. cxb6 {[%clk 0:08:15.4]} 14... axb6 {[%clk 0:02:42.2]} 15. a3
{[%clk 0:08:12.3]} 15... d6 {[%clk 0:02:31.7]} 16. Nc3 {[%clk 0:08:10.4]} 16...
Qf4 {[%clk 0:02:33.2]} 17. Qxf4 {[%clk 0:07:47.5]} 17... gxf4 {[%clk 0:02:35.1]}
18. Rfe1 {[%clk 0:07:44.6]} 18... Bg4 {[%clk 0:02:30.7]} 19. Ne4 {[%clk
0:07:01.3]} 19... O-O-O {[%clk 0:02:11.9]} 20. Nf6 {[%clk 0:07:00.5]} 20... Rg6
{[%clk 0:02:13.3]} 21. Nh4 {[%clk 0:06:29.8]} 21... Bxe2 {[%clk 0:01:46.9]} 22.
Nxg6 {[%clk 0:06:29.1]} 22... Nxg6 {[%clk 0:01:47]} 23. Rxe2 {[%clk 0:06:29.2]}
23... Nce5 {[%clk 0:01:43.1]} 24. f3 {[%clk 0:06:09.9]} 24... c6 {[%clk
0:01:32.6]} 25. Rd1 {[%clk 0:06:08]} 25... Nc4 {[%clk 0:01:18.5]} 26. Bc1 {[%clk
0:05:58.7]} 26... d5 {[%clk 0:01:13.3]} 27. Nh5 {[%clk 0:05:47.3]} 27... c5
{[%clk 0:01:00.9]} 28. Nxf4 {[%clk 0:05:27.8]} 28... Nxf4 {[%clk 0:00:45.4]} 29.
Bxf4 {[%clk 0:05:29.7]} 29... d4 {[%clk 0:00:47.1]} 30. Re7 {[%clk 0:04:47.3]}
30... Rd5 {[%clk 0:00:38.8]} 31. Rc7+ {[%clk 0:04:33.5]} 31... Kd8 {[%clk
0:00:40.1]} 32. Rxb7 {[%clk 0:04:34.1]} 32... Nxa3 {[%clk 0:00:26.4]} 33. bxc5
{[%clk 0:04:23.2]} 33... bxc5 {[%clk 0:00:28.3]} 34. Ra1 {[%clk 0:04:23.3]}
34... Rd7 {[%clk 0:00:13]} 35. Rxd7+ {[%clk 0:04:13.2]} 1-0

[Event "GrandPrix_29.05"]
[Site "Chess.com"]
[Date "2020.05.29"]
[Round "4"]
[White "tigra"]
[Black "OparinGrigoriy"]
[Result "1/2-1/2"]
[WhiteElo "2556"]
[BlackElo "2441"]
[TimeControl "600+2"]
[EndTime "10:55:31 PDT"]
[Termination "Game drawn by agreement"]

1. e4 {[%clk 0:10:01.9]} 1... e5 {[%clk 0:10:00.3]} 2. Nf3 {[%clk 0:10:02.8]}
2... Nc6 {[%clk 0:10:01.5]} 3. Bc4 {[%clk 0:10:04.1]} 3... Nf6 {[%clk
0:10:02.1]} 4. d3 {[%clk 0:10:04.7]} 4... h6 {[%clk 0:10:03.1]} 5. O-O {[%clk
0:09:33.2]} 5... d6 {[%clk 0:10:03.5]} 6. d4 {[%clk 0:09:13.4]} 6... Bg4 {[%clk
0:09:54.6]} 7. dxe5 {[%clk 0:07:57.3]} 7... Nxe5 {[%clk 0:09:54.8]} 8. Be2
{[%clk 0:07:54.4]} 8... Bxf3 {[%clk 0:09:11]} 9. Bxf3 {[%clk 0:07:56.3]} 9... g6
{[%clk 0:08:44.1]} 10. c4 {[%clk 0:07:35.3]} 10... Bg7 {[%clk 0:08:37.5]} 11.
Nc3 {[%clk 0:07:35.9]} 11... Nxf3+ {[%clk 0:08:21.3]} 12. Qxf3 {[%clk
0:07:37.8]} 12... O-O {[%clk 0:08:22.6]} 13. e5 {[%clk 0:07:21.1]} 13... dxe5
{[%clk 0:08:20.8]} 14. Qxb7 {[%clk 0:07:10.3]} 14... Qd4 {[%clk 0:08:03.5]} 15.
Qxc7 {[%clk 0:05:55.7]} 15... Rfc8 {[%clk 0:08:02.8]} 16. Qe7 {[%clk 0:05:50.1]}
16... Qxc4 {[%clk 0:07:24]} 17. Rd1 {[%clk 0:05:00.3]} 17... Re8 {[%clk
0:06:54.8]} 18. Qd6 {[%clk 0:04:53.4]} 18... e4 {[%clk 0:06:32.4]} 19. Bxh6
{[%clk 0:04:15.7]} 19... Bxh6 {[%clk 0:05:57.7]} 20. Qxf6 {[%clk 0:04:14.7]}
20... Bg7 {[%clk 0:05:59.2]} 21. Qf4 {[%clk 0:03:59.5]} 21... Bxc3 {[%clk
0:05:59.8]} 22. bxc3 {[%clk 0:03:25.2]} 22... Qxc3 {[%clk 0:06:01.7]} 23. Rac1
{[%clk 0:03:07.7]} 23... Qe5 {[%clk 0:05:57.6]} 24. Qe3 {[%clk 0:03:07.1]} 24...
a6 {[%clk 0:05:12]} 25. h4 {[%clk 0:01:03]} 25... Rad8 {[%clk 0:05:05.6]} 26.
Re1 {[%clk 0:00:54.8]} 26... Rd3 {[%clk 0:04:50.5]} 27. Qxd3 {[%clk 0:00:40.1]}
27... exd3 {[%clk 0:04:52.4]} 28. Rxe5 {[%clk 0:00:41.3]} 28... Rxe5 {[%clk
0:04:53.4]} 29. Rd1 {[%clk 0:00:42.9]} 29... Ra5 {[%clk 0:04:45.8]} 30. Rd2
{[%clk 0:00:43]} 30... Kg7 {[%clk 0:04:42.6]} 31. f3 {[%clk 0:00:43.8]} 31... f5
{[%clk 0:04:34]} 32. Rxd3 {[%clk 0:00:39.5]} 32... Rxa2 {[%clk 0:04:32.7]} 33.
Rd7+ {[%clk 0:00:40.7]} 33... Kh6 {[%clk 0:04:30.3]} 34. Kh2 {[%clk 0:00:39.5]}
34... Ra4 {[%clk 0:04:25.4]} 35. Kh3 {[%clk 0:00:39.3]} 35... g5 {[%clk
0:04:09.7]} 36. Rd6+ {[%clk 0:00:31.4]} 36... Kh5 {[%clk 0:04:10.1]} 37. hxg5
{[%clk 0:00:19.5]} 1/2-1/2